bitfinex/quotes_SOLUSD_20240625
["timestamp","ask_amount","ask_price","bid_price","bid_amount"]
[1719316909911,0.17,137.94,137.9,7.2515]
[1719316910195,13.7799,137.93,137.89,7.2521]
[1719316910396,113.7799,137.93,137.88,7.2525]
[1719316911405,113.7799,137.93,137.89,7.252]
[1719316911990,113.7799,137.93,137.88,7.2525]
[1719316912197,107.2526,137.89,137.84,7.2546]
[1719316912398,7.4219,137.9,137.78,22.6386]
[1719316912601,7.4219,137.9,137.85,7.2541]
[1719316912602,100.17,137.89,137.85,7.2541]
[1719316912804,100.17,137.89,137.86,7.2537]
[1719316913114,0.17,137.89,137.86,7.2537]
[1719316913320,0.34,137.9,137.86,7.2537]
[1719316913817,0.34,137.9,137.87,7.2531]
[1719316913995,15.7433,137.91,137.88,7.2523]
[1719316914197,15.7433,137.91,137.89,7.2519]
[1719316914612,7.2516,137.9,137.86,7.2537]
[1719316914924,107.2516,137.9,137.86,7.2537]
[1719316915094,15.9133,137.91,137.86,7.2537]
[1719316915298,107.4219,137.9,137.85,7.2541]
[1719316915498,0.17,137.89,137.85,7.2541]
[1719316916331,0.17,137.89,137.86,7.2535]
[1719316920128,7.4232,137.87,137.82,7.2556]
[1719316920427,0.17,137.87,137.83,7.2551]
[1719316920631,0.34,137.87,137.83,7.2551]
[1719316921327,7.5933,137.87,137.83,7.2551]
[1719316921526,0.34,137.87,137.83,7.2551]
[1719316922022,0.17,137.87,137.84,7.2546]
[1719316922232,100.0,137.9,137.86,7.2533]
[1719316922233,0.17,137.88,137.86,7.2533]
[1719316922398,0.34,137.89,137.85,7.2541]
[1719316923117,100.0,137.88,137.79,26.58]
[1719316923324,0.34,137.87,137.83,7.2551]
[1719316923509,0.34,137.87,137.84,7.2546]
[1719316923821,107.4227,137.88,137.84,7.2546]
[1719316924023,7.4236,137.87,137.82,7.2555]
[1719316924219,0.17,137.86,137.83,7.2551]
[1719316924727,6.8336,137.86,137.82,7.2556]
[1719316926027,6.6636,137.86,137.78,16.4165]
[1719316927033,6.6636,137.86,137.84,7.2545]
[1719316927912,6.6636,137.86,137.82,7.2557]
[1719316928112,15.3195,137.85,137.82,7.2557]
[1719316928932,107.2548,137.84,137.8,7.2565]
[1719316929136,100.0,137.84,137.74,22.3459]
[1719316929619,107.2549,137.84,137.79,7.257]
[1719316930135,107.2549,137.84,137.8,7.2567]
[1719316930925,100.0,137.82,137.78,7.2578]
[1719316931149,100.0,137.82,137.68,7.42701146]
[1719316931150,115.3625,137.8,137.7,6.1769]
[1719316931434,0.17,137.79,137.76,7.2586]
[1719316931635,0.34,137.79,137.76,7.2586]
[1719316932714,15.3625,137.8,137.7,32.7569]
[1719316933032,15.3625,137.8,137.79,7.2574]
[1719316933339,116.1114,137.84,137.82,7.2557]
[1719316933538,116.1114,137.84,137.81,7.2562]
[1719316934452,123.3662,137.84,137.8,7.2567]
[1719316934631,23.3662,137.84,137.8,7.2567]
[1719316934817,16.1114,137.84,137.82,7.2553]
[1719316935045,6.3914,137.85,137.81,7.2562]
[1719316935347,100.0,137.84,137.8,7.2568]
[1719316935530,13.6458,137.85,137.8,7.2568]
[1719316935727,13.6458,137.85,137.81,7.2562]
[1719316936113,0.17,137.84,137.81,7.2562]
[1719316936317,0.34,137.84,137.81,7.2562]
[1719316936546,107.5948,137.84,137.8,7.2568]
[1719316936733,107.5948,137.84,137.79,7.2572]
[1719316937325,107.5948,137.84,137.8,7.2567]
[1719316937537,100.34,137.84,137.8,7.2567]
[1719316938324,21.8707,137.88,137.76,26.58]
[1719316938529,29.1234,137.88,137.84,7.2543]
[1719316938736,21.8707,137.88,137.77,0.34]
[1719316938938,29.1235,137.88,137.77,20.34]
[1719316939233,100.0,137.87,137.76,26.58]
[1719316939426,7.2539,137.86,137.81,7.2562]
[1719316939847,0.17,137.85,137.82,7.2557]
[1719316940058,0.34,137.86,137.82,7.2557]
[1719316941047,0.17,137.86,137.76,26.58]
[1719316941256,100.0,137.87,137.84,7.2545]
[1719316941543,21.8707,137.88,137.8,15.0186]
[1719316941928,21.8707,137.88,137.85,7.254]
[1719316942337,21.8707,137.88,137.8,15.0186]
[1719316942749,7.2537,137.86,137.82,7.2557]
[1719316943049,7.2534,137.87,137.82,7.2557]
[1719316943862,7.2534,137.87,137.83,7.2551]
[1719316944158,129.2935,137.88,137.84,7.2546]
[1719316944327,0.34,137.87,137.84,7.2546]
[1719316945147,0.34,137.87,137.83,7.255]
[1719316945347,107.254,137.86,137.81,7.2559]
[1719316945536,7.5945,137.85,137.81,7.2559]
[1719316945941,0.34,137.85,137.81,7.2559]
[1719316946145,0.34,137.85,137.82,7.2557]
[1719316946340,107.2547,137.84,137.76,16.1653]
[1719316946554,107.2547,137.84,137.8,7.2568]
[1719316946731,100.0,137.84,137.8,7.2568]
[1719316947238,100.0,137.84,137.81,7.2562]
[1719316948240,15.3843,137.83,137.72,15.6504]
[1719316948457,15.3843,137.83,137.8,7.2567]
[1719316948957,0.17,137.82,137.8,7.2567]
[1719316949152,15.3843,137.83,137.81,7.2563]
[1719316950470,15.3843,137.83,137.73,46.58]
[1719316950471,15.3843,137.83,137.8,7.2567]
[1719316951053,22.6396,137.83,137.79,7.2573]
[1719316951274,0.17,137.82,137.79,7.2573]
[1719316951453,113.9669,137.82,137.72,42.2304]
[1719316951928,106.7109,137.82,137.72,42.2304]
[1719316952138,106.7109,137.82,137.79,7.2573]
[1719316952341,6.5409,137.82,137.8,7.2568]
[1719316952548,6.3709,137.82,137.79,7.2572]
[1719316952854,6.3709,137.82,137.8,7.2568]
[1719316953247,6.3709,137.82,137.79,7.2572]
[1719316953554,6.3709,137.82,137.8,7.2568]
[1719316953856,6.3709,137.82,137.72,42.2304]
[1719316953857,15.3843,137.83,137.79,7.2572]
[1719316954251,22.6397,137.83,137.79,7.2572]
[1719316954564,22.6397,137.83,137.78,7.2577]
[1719316955259,15.3843,137.83,137.78,7.2577]
[1719316955442,107.5958,137.82,137.78,7.2577]
[1719316955843,0.17,137.82,137.79,7.2573]
[1719316956155,15.3843,137.83,137.79,7.2573]
[1719316957567,22.6397,137.83,137.79,7.2573]
[1719316957878,22.6397,137.83,137.72,15.6504]
[1719316957879,100.0,137.81,137.72,15.6504]
[1719316958070,7.5971,137.8,137.75,7.2591]
[1719316958563,7.5971,137.8,137.76,7.2588]
[1719316958748,0.34,137.8,137.76,7.2588]
[1719316959445,0.34,137.8,137.77,7.2584]
[1719316959850,100.0,137.81,137.72,15.6504]
[1719316960774,0.17,137.82,137.79,7.2571]
[1719316960946,15.3843,137.83,137.79,7.2571]
[1719316960947,15.3843,137.83,137.79,7.2572]
[1719316961555,115.3843,137.83,137.79,7.2572]
[1719316961845,122.6397,137.83,137.79,7.2572]
[1719316962147,100.0,137.81,137.76,7.2588]
[1719316962358,0.34,137.8,137.76,7.2588]
[1719316963370,100.0,137.79,137.76,7.2588]
[1719316963554,100.0,137.79,137.72,15.6504]
[1719316963555,100.0,137.79,137.75,7.2593]
[1719316963770,100.0,137.79,137.76,7.2588]
[1719316963964,0.17,137.8,137.72,15.6504]
[1719316964160,106.2746,137.79,137.71,26.58]
[1719316964476,0.34,137.78,137.75,7.259]
[1719316965470,106.2746,137.79,137.76,7.2589]
[1719316966851,100.0,137.82,137.71,26.58]
[1719316967051,100.0,137.82,137.79,7.2572]
[1719316967665,100.0,137.82,137.78,7.2577]
[1719316967872,100.0,137.82,137.79,7.2573]
[1719316968389,0.17,137.81,137.79,7.2573]
[1719316969677,0.17,137.81,137.78,7.2577]
[1719316971305,100.0,137.8,137.77,7.2584]
[1719316972352,100.0,137.8,137.78,7.2578]
[1719316973158,100.0,137.8,137.77,7.2582]
[1719316975274,100.0,137.8,137.78,7.2577]
[1719316975983,100.0,137.8,137.77,7.2582]
[1719316976279,0.34,137.79,137.77,7.2582]
[1719316979786,100.0,137.82,137.69,49.3898]
[1719316979960,15.3843,137.83,137.82,7.2558]
[1719316980912,16.3902,137.86,137.76,26.58]
[1719316981068,16.3902,137.86,137.84,7.2544]
[1719316981407,16.3902,137.86,137.85,7.2542]
[1719316981684,131.3022627,137.9,137.86,7.2536]
[1719316981864,131.73213805,137.9,137.86,7.2536]
[1719316982563,138.98373805,137.9,137.86,7.2536]
[1719316982780,138.98373805,137.9,137.85,7.254]
[1719316983088,138.98373805,137.9,137.8,7.2564]
[1719316983089,7.2543,137.85,137.8,7.2564]
[1719316983296,100.17,137.86,137.77,26.58]
[1719316983491,100.17,137.86,137.82,7.2554]
[1719316983898,0.17,137.85,137.81,7.2563]
[1719316984082,116.1898,137.84,137.81,7.2563]
[1719316984279,116.1898,137.84,137.77,26.58]
[1719316984483,0.34,137.83,137.75,6.2939]
[1719316984900,0.34,137.83,137.79,7.2573]
[1719316985801,0.34,137.83,137.79,7.2572]
[1719316987899,0.34,137.83,137.81,7.2561]
[1719316988080,0.34,137.83,137.74,42.9701]
[1719316988396,16.1898,137.84,137.75,20.0]
[1719316988598,122.1166,137.88,137.77,26.58]
[1719316988792,129.3693,137.88,137.83,7.2549]
[1719316989400,100.0,137.86,137.83,7.2549]
[1719316989700,129.3693,137.88,137.84,7.2547]
[1719316989911,122.1166,137.88,137.85,7.2542]
[1719316990198,122.1166,137.88,137.84,7.2546]
[1719316991903,0.34,137.87,137.84,7.2544]
[1719316992088,0.34,137.87,137.85,7.254]
[1719316992089,0.17,137.87,137.85,7.254]
[1719316992901,0.17,137.87,137.84,7.2546]
[1719316993408,7.4232,137.87,137.8,15.9607]
[1719316994305,0.17,137.87,137.8,15.9607]
[1719316994509,100.0,137.85,137.77,48.159]
[1719316996003,100.0,137.85,137.83,7.2552]
[1719316996683,100.0,137.85,137.77,48.159]
[1719316996888,100.34,137.87,137.83,7.255]
[1719316997104,100.34,137.87,137.77,48.159]
[1719316997105,100.34,137.87,137.84,7.2546]
[1719316997903,100.34,137.87,137.83,7.2552]
[1719316998104,100.0,137.85,137.82,7.2556]
[1719316998508,100.0,137.85,137.83,7.2551]
[1719316998896,100.0,137.85,137.82,7.2557]
[1719316999098,0.34,137.84,137.81,7.256]
[1719316999499,100.0,137.85,137.77,21.579]
[1719316999714,0.34,137.86,137.83,7.2548]
[1719317000717,0.34,137.86,137.77,48.159]
[1719317000718,0.42987535,137.89,137.8,26.58]
[1719317000923,22.4205,137.92,137.91,7.2511]
[1719317000924,15.1699,137.92,137.91,7.2511]
[1719317001231,100.0,137.98,137.97,7.2479]
[1719317001453,21.5247,137.99,137.96,7.248]
[1719317001810,100.0,138.02,137.92,26.58]
[1719317002021,100.0,138.02,137.99,7.2468]
[1719317002214,15.4398627,138.03,137.99,7.2468]
[1719317002525,277.0057,138.08,137.95,26.58]
[1719317002526,106.5329,138.07,137.95,26.58]
[1719317002823,6.5329,138.07,138.05,7.2437]
[1719317003023,100.0,138.09,138.05,7.2437]
[1719317003203,100.0,138.09,138.04,7.2441]
[1719317003402,107.2418,138.09,138.04,7.2441]
[1719317003610,107.2418,138.09,137.98,26.58]
[1719317003611,107.2418,138.09,138.03,7.2447]
[1719317003929,100.0,138.07,138.01,7.2453]
[1719317004219,7.2432,138.06,138.01,7.2453]
[1719317004432,107.2437,138.05,137.99,7.2464]
[1719317004616,0.34,138.04,137.91,15.0352]
[1719317004818,100.0,138.03,137.92,20.0]
[1719317005123,0.34,138.02,137.92,20.0]
[1719317005629,7.2469,137.99,137.91,15.0352]
[1719317005803,100.0,137.99,137.9,6.3689]
[1719317006003,0.34,137.98,137.86,23.036]
[1719317006198,100.0,137.97,137.92,7.2504]
[1719317006420,0.34,137.98,137.86,23.036]
[1719317006627,0.34,137.98,137.94,7.2495]
[1719317006922,100.0,137.97,137.93,7.2499]
[1719317007126,100.0,137.97,137.92,7.2505]
[1719317007302,0.17,137.96,137.92,7.2505]
[1719317007629,100.0,137.95,137.86,6.4797]
[1719317007823,0.34,137.94,137.86,6.4797]
[1719317008323,0.34,137.94,137.9,7.2515]
[1719317008501,0.34,137.94,137.86,6.4797]
[1719317008702,0.17,137.94,137.92,7.2505]
[1719317008901,100.0,137.95,137.91,7.2509]
[1719317009125,100.0,137.95,137.83,30.94]
[1719317009126,0.17,137.94,137.9,7.2511]
[1719317009308,0.34,137.94,137.91,7.251]
[1719317009507,100.0,137.97,137.83,30.94]
[1719317009822,0.34,137.96,137.92,7.2505]
[1719317009999,0.34,137.96,137.84,20.17]
[1719317010000,100.0,137.99,137.84,41.94]
[1719317010208,0.17,137.98,137.96,7.2484]
[1719317010727,0.17,137.98,137.95,7.2488]
[1719317011102,0.34,137.98,137.95,7.2489]
[1719317011307,100.0,138.01,137.88,0.17]
[1719317011510,100.0,138.01,137.96,7.248]
[1719317012497,7.4165,138.0,137.95,7.2488]
[1719317012699,7.2474,137.99,137.93,7.2495]
[1719317012906,107.5878,137.98,137.92,7.2501]
[1719317013117,0.17,137.97,137.84,20.0]
[1719317013405,7.2491,137.95,137.89,7.2519]
[1719317013619,0.17,137.98,137.88,7.2522]
[1719317013620,107.4198,137.94,137.88,7.2522]
[1719317014410,0.17,137.93,137.89,7.252]
[1719317015103,100.0,137.92,137.82,6.3644]
[1719317015440,100.0,137.92,137.87,7.253]
[1719317016328,100.0,137.92,137.88,7.2526]
[1719317016702,0.17,137.93,137.88,7.2526]
[1719317016907,0.17,137.93,137.89,7.2521]
[1719317017113,0.17,137.93,137.91,7.251]
[1719317017411,100.17,137.94,137.9,7.2516]
[1719317017617,100.0,137.94,137.9,7.2516]
[1719317017810,100.0,137.94,137.83,0.17]
[1719317017811,0.34,137.95,137.91,7.2509]
[1719317018531,100.0,137.94,137.89,7.2519]
[1719317018727,100.0,137.92,137.82,21.8956]
[1719317018929,100.0,137.92,137.83,20.0]
[1719317019112,0.17,137.91,137.83,20.0]
[1719317019309,0.17,137.91,137.87,7.2531]
[1719317019627,0.34,137.91,137.87,7.253]
[1719317021033,0.34,137.91,137.82,6.3644]
[1719317021034,100.0,137.89,137.78,6.4891]
[1719317021339,7.5927,137.88,137.83,7.2551]
[1719317022134,0.34,137.88,137.83,7.2551]
[1719317022337,100.0,137.87,137.82,7.2556]
[1719317022542,0.17,137.86,137.82,7.2556]
[1719317022745,0.34,137.86,137.82,7.2556]
[1719317022907,100.0,137.89,137.85,7.2541]
[1719317023111,0.34,137.88,137.85,7.2541]
[1719317024108,100.0,137.87,137.83,7.2548]
[1719317024637,0.17,137.86,137.83,7.2548]
[1719317025015,0.17,137.86,137.76,16.5288]
[1719317025284,0.34,137.86,137.81,7.2561]
[1719317025436,107.2542,137.85,137.8,7.2568]
[1719317025630,0.34,137.84,137.8,7.2568]
[1719317025817,0.34,137.84,137.81,7.2562]
[1719317026451,0.17,137.84,137.82,7.2556]
[1719317026614,100.0,137.85,137.82,7.2556]
[1719317027025,0.34,137.86,137.83,7.2551]
[1719317027229,15.847,137.87,137.84,7.2543]
[1719317027537,100.0,137.89,137.85,7.2541]
[1719317027715,0.17,137.88,137.85,7.2541]
[1719317028150,0.17,137.88,137.84,7.2547]
[1719317028349,0.17,137.88,137.83,7.2551]
[1719317028641,100.0,137.86,137.74,6.3567]
[1719317028814,0.17,137.85,137.75,20.0]
[1719317029012,0.34,137.85,137.81,7.2563]
[1719317029434,0.17,137.85,137.81,7.2563]
[1719317029612,106.3604,137.86,137.82,7.2555]
[1719317030220,0.34,137.85,137.81,7.2562]
[1719317030427,0.34,137.85,137.82,7.2558]
[1719317032036,0.34,137.85,137.81,7.2562]
[1719317032343,0.34,137.85,137.8,7.2567]
[1719317032840,0.34,137.85,137.81,7.2563]
[1719317033141,0.17,137.85,137.75,20.0]
[1719317033348,6.3604,137.86,137.76,0.34]
[1719317033944,6.3604,137.86,137.83,7.2551]
[1719317034134,6.3604,137.86,137.82,7.2556]
[1719317035141,6.3604,137.86,137.76,0.34]
[1719317035352,106.3604,137.86,137.76,0.34]
[1719317035528,6.3604,137.86,137.76,0.34]
[1719317035728,6.3604,137.86,137.82,7.2556]
[1719317037452,6.3604,137.86,137.81,7.2561]
[1719317037662,113.6142,137.86,137.81,7.2561]
[1719317039454,106.3604,137.86,137.82,7.2557]
[1719317040145,106.3604,137.86,137.81,7.2561]
[1719317040450,6.3604,137.86,137.82,7.2557]
[1719317040653,106.3604,137.86,137.82,7.2557]
[1719317040834,106.3604,137.86,137.83,7.2552]
[1719317041744,6.4027,137.9,137.76,0.34]
[1719317041952,100.0,137.89,137.77,16.6024]
[1719317042139,100.0,137.89,137.85,7.2541]
[1719317042330,13.6544,137.9,137.85,7.2541]
[1719317042331,13.6543,137.9,137.85,7.2539]
[1719317042658,6.4027,137.9,137.87,7.2531]
[1719317042950,6.4027,137.9,137.78,0.34]
[1719317042951,6.4027,137.9,137.88,7.2526]
[1719317043534,15.133,137.92,137.88,7.2526]
[1719317043968,15.133,137.92,137.89,7.2521]
[1719317044541,15.133,137.92,137.81,6.4645]
[1719317044542,6.3448,137.93,137.9,7.2516]
[1719317044928,15.632,137.95,137.91,7.2508]
[1719317045351,15.632,137.95,137.92,7.2505]
[1719317045630,113.5384,138.01,137.87,30.94]
[1719317045855,7.2464,138.0,137.88,26.05074936]
[1719317046155,106.2924,138.01,137.89,0.17]
[1719317046355,106.2924,138.01,137.89,6.04989645]
[1719317046559,6.2924,138.01,137.9,20.17]
[1719317046752,6.2924,138.01,137.97,7.2479]
[1719317046957,15.6683,138.02,137.98,7.2473]
[1719317047954,265.4676,138.04,137.99,7.2466]
[1719317049249,0.34,138.03,137.99,7.2466]
[1719317050463,7.5848,138.03,137.98,7.2473]
[1719317050773,0.34,138.03,137.99,7.2468]
[1719317050984,100.0,138.02,137.94,6.659]
[1719317051144,7.4162,138.01,137.95,7.2485]
[1719317051347,7.416,138.01,137.95,7.2485]
[1719317051557,7.416,138.01,137.96,7.2484]
[1719317051757,7.416,138.01,137.97,7.2478]
[1719317051758,0.17,138.01,137.97,7.2478]
[1719317051951,100.0,138.02,137.97,7.2478]
[1719317052161,0.34,138.01,137.97,7.2478]
[1719317052559,7.5858,138.01,137.96,7.2482]
[1719317053998,0.34,138.01,137.96,7.2482]
[1719317054370,7.5858,138.01,137.96,7.2482]
[1719317054543,0.34,138.01,137.96,7.2482]
[1719317054869,7.5859,138.01,137.96,7.2482]
[1719317055179,100.0,137.98,137.9,6.202]
[1719317055490,7.2486,137.96,137.9,7.2513]
[1719317055768,7.588,137.97,137.91,7.2507]
[1719317055971,7.588,137.97,137.92,7.2505]
[1719317056669,0.34,137.97,137.93,7.2499]
[1719317057573,6.6206,137.96,137.92,7.2504]
[1719317058162,100.0,137.95,137.9,7.2511]
[1719317058346,0.34,137.94,137.83,46.7899]
[1719317058556,0.34,137.94,137.9,7.2515]
[1719317058759,100.0,137.95,137.83,46.7899]
[1719317058959,100.0,137.95,137.92,7.2504]
[1719317060169,6.9606,137.96,137.93,7.2499]
[1719317060375,6.9606,137.96,137.92,7.2504]
[1719317060760,6.9606,137.96,137.91,7.2509]
[1719317061161,6.9606,137.96,137.92,7.2505]
[1719317061376,6.9606,137.96,137.93,7.2498]
[1719317061960,6.7906,137.96,137.93,7.2498]
[1719317063058,100.0,138.01,137.9,6.1008]
[1719317063266,100.0,138.01,137.97,7.2476]
[1719317063766,107.2458,138.01,137.96,7.2484]
[1719317064072,7.2474,137.98,137.9,6.1008]
[1719317064272,100.0,137.99,137.91,20.0]
[1719317064273,107.247,137.99,137.91,20.0]
[1719317064465,100.0,137.99,137.91,20.0]
[1719317064664,0.17,137.98,137.94,7.2493]
[1719317064975,0.34,137.98,137.94,7.2493]
[1719317065355,0.34,137.98,137.96,7.2484]
[1719317065561,0.34,137.98,137.95,7.2488]
[1719317065762,0.34,137.98,137.94,7.2493]
[1719317066468,100.0,137.99,137.87,6.1179]
[1719317066655,100.0,137.99,137.88,20.34]
[1719317066882,0.34,137.98,137.88,20.34]
[1719317067076,0.34,137.98,137.95,7.2486]
[1719317067585,0.34,137.98,137.94,7.2493]
[1719317067881,0.34,137.98,137.88,20.34]
[1719317067882,107.2479,137.97,137.92,7.2501]
[1719317068068,0.17,137.96,137.92,7.2504]
[1719317068283,0.17,137.96,137.93,7.25]
[1719317068960,7.4175,137.98,137.88,20.0]
[1719317068961,0.17,137.98,137.88,20.0]
[1719317069173,0.34,137.98,137.95,7.2488]
[1719317069370,0.34,137.98,137.94,7.2494]
[1719317070081,0.34,137.98,137.95,7.2488]
[1719317070287,0.34,137.98,137.94,7.2494]
[1719317070485,0.34,137.98,137.93,7.2498]
[1719317070486,100.0,137.97,137.93,7.2498]
[1719317070663,0.17,137.96,137.88,20.0]
[1719317070979,0.17,137.96,137.93,7.2499]
[1719317071278,0.17,137.96,137.92,7.2504]
[1719317071857,0.17,137.96,137.93,7.25]
[1719317072188,0.17,137.98,137.88,20.0]
[1719317072369,0.34,137.98,137.88,20.0]
[1719317072791,0.34,137.98,137.95,7.2489]
[1719317073386,100.0,138.01,137.88,20.0]
[1719317073593,21.8305,138.02,137.9,16.6369]
[1719317073792,21.8305,138.02,137.91,20.34]
[1719317073990,21.8305,138.02,137.99,7.2467]
[1719317074418,21.8305,138.02,137.98,7.2472]
[1719317074928,7.53986085,138.03,137.99,7.2464]
[1719317075101,121.6192,138.05,137.99,7.2464]
[1719317075803,7.2443,138.04,137.99,7.2464]
[1719317077511,121.9592,138.05,137.95,6.3712]
[1719317077811,15.4613,138.05,138.03,7.2447]
[1719317078112,28.9304,138.08,138.03,7.2447]
[1719317078622,28.9304,138.08,137.96,20.17]
[1719317078808,21.688,138.08,138.03,7.2447]
[1719317078989,21.688,138.08,138.04,7.2442]
[1719317079718,21.688,138.08,138.03,7.2446]
[1719317080514,7.2427,138.07,138.02,7.2451]
[1719317080890,21.688,138.08,137.97,15.8432]
[1719317081100,8.9069627,138.12,137.99,6.064]
[1719317081101,22.3668,138.12,137.99,6.064]
[1719317081305,22.3668,138.12,138.0,52.39308752]
[1719317081496,22.3668,138.12,138.08,7.2421]
[1719317081810,22.3668,138.12,138.07,7.2425]
[1719317084043,29.6069,138.12,138.0,51.28]
[1719317084203,7.2406,138.11,138.0,51.28]
[1719317084513,22.3668,138.12,138.0,51.28]
[1719317084696,29.607,138.12,138.0,51.28]
[1719317085641,107.58,138.13,138.01,16.4793]
[1719317085794,0.17,138.12,138.02,0.17]
[1719317085999,7.5802,138.12,138.02,0.34]
[1719317086613,7.5802,138.12,138.04,26.48]
[1719317087302,7.2406,138.11,138.04,26.48]
[1719317088028,7.2412,138.1,138.01,16.4793]
[1719317088195,7.4118,138.09,138.01,42.9593]
[1719317089100,107.4118,138.09,138.01,42.9593]
[1719317089627,100.17,138.09,138.01,42.9593]
[1719317090794,100.17,138.09,138.05,7.2437]
[1719317091020,100.0,138.12,138.01,42.9593]
[1719317091322,0.34,138.11,138.07,7.2423]
[1719317091622,0.17,138.11,138.07,7.2423]
[1719317091801,7.2397,138.13,138.08,7.2421]
[1719317092205,107.2401,138.12,138.01,42.9593]
[1719317092396,107.2401,138.12,138.02,0.34]
[1719317092819,7.2401,138.12,138.02,0.34]
[1719317093416,7.5796,138.13,138.04,26.48]
[1719317094218,7.4096,138.13,138.04,26.48]
[1719317095431,100.17,138.14,138.04,26.48]
[1719317095632,0.17,138.14,138.05,6.5711]
[1719317095929,15.3365,138.15,138.07,26.48]
[1719317096132,107.238,138.16,138.07,26.48]
[1719317096426,7.238,138.16,138.08,15.3467]
[1719317096634,7.2371,138.18,138.08,15.3467]
[1719317096929,22.9573,138.19,138.1,26.48]
[1719317097103,7.237,138.18,138.1,26.48]
[1719317097304,7.2374,138.17,138.1,26.48]
[1719317098112,107.2374,138.17,138.1,26.48]
[1719317099821,100.0,138.17,138.1,26.48]
[1719317100020,7.577,138.18,138.1,26.48]
[1719317100222,0.34,138.18,138.1,26.48]
[1719317100828,7.577,138.18,138.1,26.48]
[1719317101634,107.2374,138.17,138.1,26.48]
[1719317101807,7.4081,138.16,138.08,15.3467]
[1719317102133,100.17,138.15,138.08,15.3467]
[1719317102323,0.17,138.15,138.08,15.3467]
[1719317102812,0.34,138.16,138.08,15.3467]
[1719317103014,7.5323655,138.19,138.14,26.48]
[1719317103216,21.8838,138.23,138.14,26.48]
[1719317103720,21.8838,138.23,138.15,0.9246779]
[1719317104043,21.8838,138.23,138.14,26.48]
[1719317105206,15.2997,138.23,138.15,15.7382]
[1719317106114,22.5342,138.23,138.15,15.7382]
[1719317106725,0.17,138.22,138.15,15.7382]
[1719317107123,7.2355,138.21,138.15,15.7382]
[1719317107434,7.4049,138.22,138.15,15.7382]
[1719317107623,0.17,138.22,138.15,15.7382]
[1719317109237,100.0,138.21,138.12,16.158]
[1719317109536,0.17,138.2,138.12,16.158]
[1719317109741,107.2353,138.21,138.12,16.158]
[1719317110046,0.34,138.2,138.12,16.158]
[1719317110921,0.17,138.2,138.12,16.158]
[1719317111229,7.235,138.22,138.12,16.158]
[1719317112029,115.6397,138.23,138.12,16.158]
[1719317112030,107.2356,138.21,138.12,16.158]
[1719317113450,0.17,138.22,138.12,16.158]
[1719317113451,100.0,138.19,138.12,16.158]
[1719317114839,0.34,138.2,138.12,16.158]
[1719317115654,7.576,138.2,138.12,16.158]